lending/lending_fUSD_20250122
["ID","MTS","AMOUNT","RATE_DAILY","PERIOD"]
[349991225,1737553841386,-1052.67,0.00020969,2]
[349991226,1737553841396,-875.20596515,0.00020969,2]
[349991227,1737553841454,-13048.23748243,0.00020969,2]
[349991228,1737553841523,-257.33946762,0.00020969,2]
[349991248,1737553842793,-500.0,0.00020795,2]
[349991250,1737553842803,-324.4690794,0.00020969,2]
[349991251,1737553842812,-1943.56,0.00020969,2]
[349991252,1737553842822,-500.0,0.00020969,2]
[349991253,1737553842831,-500.0,0.00020969,2]
[349991254,1737553842840,-500.0,0.00020969,2]
[349991255,1737553842850,-1757.28341355,0.00020969,2]
[349991256,1737553842865,-296.84660726,0.00020969,2]
[349991257,1737553842876,-406.64319904,0.00020969,2]
[349991258,1737553842966,-1108.33678015,0.00020969,2]
[349991259,1737553842977,-1095.48,0.00020969,2]
[349991260,1737553842988,-500.0,0.00020969,2]
[349991261,1737553842998,-507.37,0.00020969,2]
[349991262,1737553843007,-500.0,0.00020969,2]
[349991263,1737553843018,-500.0,0.00020969,2]
[349991264,1737553843028,-1953.73,0.00020969,2]
[349991265,1737553843038,-210.17925985,0.00020969,2]
[349991266,1737553843050,-289.82074015,0.00020969,2]
[349991267,1737553843060,-633.37,0.00020969,2]
[349991268,1737553843070,-500.0,0.00020969,2]
[349991269,1737553843079,-660.55,0.00020969,2]
[349991270,1737553843089,-500.0,0.00020969,2]
[349991271,1737553843099,-500.0,0.00020969,2]
[349991272,1737553843108,-500.0,0.00020969,2]
[349991273,1737553843117,-500.0,0.00020969,2]
[349991274,1737553843127,-1034.5,0.00020969,2]
[349991275,1737553843136,-500.0,0.00020969,2]
[349991276,1737553843145,-1149.69,0.00020969,2]
[349991277,1737553843155,-500.0,0.00020969,2]
[349991278,1737553843164,-500.0,0.00020969,2]
[349991279,1737553843174,-500.0,0.00020969,2]
[349991280,1737553843183,-608.17,0.00020969,2]
[349991281,1737553843192,-615.04,0.00020969,2]
[349991282,1737553843206,-500.0,0.00020969,2]
[349991283,1737553843217,-597.3,0.00020969,2]
[349991284,1737553843267,-728.25,0.00020969,2]
[349991285,1737553843277,-500.0,0.00020969,2]
[349991286,1737553843287,-2258.64,0.00020969,2]
[349991287,1737553843296,-500.0,0.00020969,2]
[349991288,1737553843305,-500.0,0.00020969,2]
[349991289,1737553843315,-723.94,0.00020969,2]
[349991290,1737553843324,-500.0,0.00020969,2]
[349991291,1737553843334,-939.0,0.00020969,2]
[349991292,1737553843343,-500.0,0.00020969,2]
[349991293,1737553843352,-500.0,0.00020969,2]
[349991294,1737553843361,-500.0,0.00020969,2]
[349991295,1737553843371,-642.0,0.00020969,2]
[349991296,1737553843380,-49.59491014,0.00020969,2]
[349991297,1737553843391,-450.40508986,0.00020969,2]
[349991298,1737553843401,-1000.0,0.00020969,2]
[349991299,1737553843411,-500.0,0.00020969,2]
[349991300,1737553843420,-500.0,0.00020969,2]
[349991301,1737553843429,-506.25064628,0.00020969,2]
[349991302,1737553843440,-500.0,0.00020969,2]
[349991303,1737553843450,-500.0,0.00020969,2]
[349991304,1737553843463,-500.0,0.00020969,2]
[349991305,1737553843472,-500.0,0.00020969,2]
[349991306,1737553843481,-396.55346793,0.00020969,2]
[349991307,1737553843492,-716.86653207,0.00020969,2]
[349991308,1737553843502,-500.0,0.00020969,2]
[349991309,1737553843511,-500.0,0.00020969,2]
[349991310,1737553843520,-500.0,0.00020969,2]
[349991311,1737553843529,-935.96,0.00020969,2]
[349991312,1737553843538,-1018.87,0.00020969,2]
[349991313,1737553843547,-500.0,0.00020969,2]
[349991314,1737553843556,-500.0,0.00020969,2]
[349991315,1737553843567,-500.0,0.00020969,2]
[349991316,1737553843576,-500.0,0.00020969,2]
[349991317,1737553843585,-500.0,0.00020969,2]
[349991318,1737553843594,-500.0,0.00020969,2]
[349991319,1737553843603,-500.0,0.00020969,2]
[349991320,1737553843614,-592.43,0.00020969,2]
[349991321,1737553843624,-500.0,0.00020969,2]
[349991322,1737553843633,-500.0,0.00020969,2]
[349991323,1737553843642,-500.0,0.00020969,2]
[349991325,1737553843651,-500.0,0.0002097,2]
[349991326,1737553843662,-500.0,0.0002097,2]
[349991327,1737553843671,-359.92589614,0.0002097,2]
[349991328,1737553843681,-500.0,0.0002097,2]
[349991329,1737553843693,-500.0,0.0002097,2]
[349991330,1737553843703,-93193.97133085,0.0002097,2]
[349991331,1737553843716,-12674.517128,0.0002097,2]
[349991332,1737553843731,-7623.58299788,0.0002097,2]
[349991333,1737553843740,-500.0,0.0002097,2]
[349991334,1737553843749,-524.90077381,0.0002097,2]
[349991335,1737553843759,-500.0,0.0002097,2]
[349991336,1737553843770,-500.0,0.0002097,2]
[349991337,1737553843779,-500.0,0.0002097,2]
[349991338,1737553843788,-3000.0,0.0002097,2]
[349991339,1737553843799,-500.0,0.0002097,2]
[349991340,1737553843809,-224881.90547594,0.00020971,2]
[349991346,1737553845834,-500.0,0.00020795,2]
[349991347,1737553845846,-336.4,0.00020795,2]
[349991348,1737553845859,-76.983103,0.00020795,2]
[349991349,1737553845877,-500.0,0.00020795,2]
[349991350,1737553845888,-500.0,0.00020796,2]
[349991351,1737553845897,-25173.016899,0.00020971,2]
[349991352,1737553845908,-4061.97245114,0.00020971,2]
[349991353,1737553845919,-1654.95000001,0.00020971,2]
[349991354,1737553845967,-5223.0,0.00020971,2]
[349991355,1737553845978,-1597.3051,0.00020971,2]
[349991356,1737553845990,-1310.7,0.00020971,2]
[349991357,1737553846258,-36100.0113721,0.00020971,2]
[349991358,1737553846267,-104269.91684499,0.00020971,3]
[349991359,1737553846279,-40106.89164093,0.00020971,3]
[349991419,1737554559276,160.34,0.00010137,2]
[349991421,1737554563424,1445.0,0.00024,120]
[349991424,1737554703580,203.21494,0.00024,120]
[349991425,1737554798149,-500.0,0.00016,2]
[349991426,1737554798170,-193.50493081,0.000165,2]
[349991434,1737554933647,1000.0,0.00021917,120]
[349991435,1737554933925,1000.0,0.00021917,120]
[349991436,1737554934255,594.4252176,0.00021917,120]
[349991447,1737555032027,-197.88,0.00012329,2]
[349991448,1737555032040,-550.0,0.00015,2]
[349991449,1737555032050,-306.49506919,0.000165,2]
[349991450,1737555032060,-765.75,0.00016807,2]
[349991451,1737555032070,-249.93499634,0.00016807,2]
[349991452,1737555032080,-324.35789654,0.00017,2]
[349991453,1737555032094,-75.64210346,0.00017,2]
[349991454,1737555032105,-600.0,0.00017,2]
[349991455,1737555032115,-500.0,0.00018548,2]
[349991456,1737555032125,-464.85789654,0.00019,2]
[349991457,1737555032227,-185.14210346,0.00019,2]
[349991458,1737555032237,-765.75,0.00019071,2]
[349991459,1737555032246,-225.35946582,0.00019369,2]
[349991460,1737555032258,-774.64053418,0.00019369,2]
[349991461,1737555032268,-1871.7,0.00019369,2]
[349991462,1737555032278,-23900.0,0.00019396,2]
[349991463,1737555032288,-731.61,0.00019408,2]
[349991464,1737555032298,-751.82,0.0001946,2]
[349991465,1737555032308,-153.29,0.00019636,2]
[349991466,1737555032318,-500.0,0.00019644,2]
[349991467,1737555032328,-250.0,0.00019736,2]
[349991468,1737555032337,-250.0,0.00019768,2]
[349991469,1737555032347,-195.02,0.00019799,2]
[349991470,1737555032357,-250.0,0.00019918,2]
[349991471,1737555032367,-865.79,0.00019923,2]
[349991472,1737555032376,-168.44,0.00019962,2]
[349991473,1737555032386,-175.91959068,0.00019974,2]
[349991474,1737555032396,-200.0,0.0002,10]
[349991475,1737555032406,-5361.76987515,0.00020123,2]
[349991476,1737555032422,-5978.57171576,0.00020123,2]
[349991477,1737555032432,-327.15,0.00020168,2]
[349991478,1737555032442,-300.0,0.000203,7]
[349991479,1737555032455,-406.4745265,0.000203,2]
[349991480,1737555032466,-150.0,0.00020356,2]
[349991481,1737555032477,-874.78,0.00020356,2]
[349991482,1737555032487,-150.0,0.00020356,2]
[349991483,1737555032496,-150.0,0.00020356,2]
[349991484,1737555032507,-150.0,0.00020356,2]
[349991485,1737555032517,-150.0,0.00020356,2]
[349991486,1737555032526,-150.0,0.00020356,2]
[349991487,1737555032536,-155.24,0.00020388,30]
[349991488,1737555032546,-700.0,0.000204,7]
[349991489,1737555032556,-774.78375774,0.00020423,2]
[349991490,1737555032571,-225.21624226,0.00020423,2]
[349991491,1737555032581,-1100.0,0.000205,7]
[349991492,1737555032590,-757.46435774,0.000205,2]
[349991493,1737555033318,-15390.53564226,0.000205,2]
[349991494,1737555033328,-250.0,0.00020577,2]
[349991495,1737555033338,-1500.0,0.000206,7]
[349991496,1737555033349,-406.4745266,0.00020688,2]
[349991497,1737555033359,-265.982,0.00020695,2]
[349991498,1737555033369,-3159.19854469,0.00020695,2]
[349991499,1737555033993,-1702.13075531,0.00020695,2]
[349991500,1737555034002,-5850.6472,0.00020696,2]
[349991501,1737555034013,-669.5971,0.00020696,2]
[349991502,1737555034024,-1574.4,0.00020696,2]
[349991503,1737555034033,-316.7422,0.00020696,2]
[349991504,1737555034043,-1345.7491333,0.00020696,2]
[349991505,1737555034052,-25403.0,0.000207,2]
[349991506,1737555034062,-1800.0,0.000207,7]
[349991507,1737555034072,-452.29841647,0.000207,2]
[349991508,1737555034369,-126010.001595,0.000207,2]
[349991509,1737555034380,-160.34,0.00020708,2]
[349991510,1737555034390,-500.0,0.0002074,2]
[349991511,1737555034400,-2992.01243793,0.0002076,2]
[349991512,1737555034414,-7.98756207,0.0002076,2]
[349991513,1737555034425,-1150.201,0.00020762,2]
[349991514,1737555034435,-1345.74913322,0.00020763,2]
[349991515,1737555034445,-1753.69152984,0.00020785,2]
[349991516,1737555034458,-255.43,0.00020785,2]
[349991517,1737555034470,-298.98941924,0.00020787,2]
[349991518,1737555034481,-4343.199854,0.00020788,2]
[349991519,1737555034491,-13047.14162084,0.00020789,2]
[349991520,1737555034501,-2750.65792878,0.0002079,2]
[349991521,1737555034512,-423.04317722,0.00020793,2]
[349991522,1737555034523,-622.42386806,0.00020793,2]
[349991523,1737555034534,-200.0,0.00020793,2]
[349991524,1737555034544,-346.91042057,0.00020794,2]
[349991525,1737555034554,-405.53358838,0.00020795,2]
[349991526,1737555034565,-500.0,0.00020795,2]
[349991527,1737555034576,-500.0,0.00020795,2]
[349991528,1737555034594,-500.0,0.00020795,2]
[349991529,1737555034616,-507.46068647,0.00020795,2]
[349991530,1737555034630,-500.0,0.00020795,2]
[349991531,1737555034640,-500.0,0.00020795,2]
[349991532,1737555034650,-500.0,0.00020795,2]
[349991533,1737555034660,-500.0,0.00020795,2]
[349991534,1737555034670,-500.0,0.00020795,2]
[349991535,1737555034680,-500.0,0.00020795,2]
[349991536,1737555034690,-500.0,0.00020795,2]
[349991537,1737555034701,-500.0,0.00020795,2]
[349991538,1737555034714,-500.0,0.00020795,2]
[349991539,1737555034724,-500.0,0.00020795,2]
[349991540,1737555034733,-500.0,0.00020795,2]
[349991541,1737555034743,-500.0,0.00020795,2]
[349991542,1737555034753,-500.0,0.00020795,2]
[349991543,1737555034762,-500.0,0.00020795,2]
[349991544,1737555034771,-500.0,0.00020795,2]
[349991545,1737555034780,-500.0,0.00020795,2]
[349991546,1737555034789,-500.0,0.00020795,2]
[349991547,1737555034798,-500.0,0.00020795,2]
[349991548,1737555034807,-500.0,0.00020795,2]
[349991549,1737555034816,-500.0,0.00020795,2]
[349991550,1737555034825,-500.0,0.00020795,2]
[349991551,1737555034834,-500.0,0.00020795,2]
[349991552,1737555034843,-493.50548145,0.00020795,2]
[349991553,1737555034853,-500.0,0.00020795,2]
[349991554,1737555034863,-500.0,0.00020795,2]
[349991555,1737555034872,-500.0,0.00020795,2]
[349991556,1737555034881,-500.0,0.00020795,2]
[349991557,1737555034891,-500.0,0.00020795,2]
[349991558,1737555034900,-500.0,0.00020795,2]
[349991559,1737555034910,-500.0,0.00020795,2]
[349991560,1737555034919,-500.0,0.00020795,2]
[349991561,1737555034929,-500.0,0.00020795,2]
[349991562,1737555034938,-500.0,0.00020795,2]
[349991563,1737555034948,-565.16,0.00020795,2]
[349991564,1737555034957,-213.1523031,0.00020795,2]
[349991565,1737555034967,-500.0,0.00020795,2]
[349991566,1737555034977,-500.0,0.00020795,2]
[349991567,1737555034987,-500.0,0.00020795,2]
[349991568,1737555034998,-500.0,0.00020795,2]
[349991569,1737555035007,-500.0,0.00020795,2]
[349991570,1737555035255,-629.06,0.00020795,2]
[349991571,1737555035266,-500.0,0.00020795,2]
[349991572,1737555035276,-500.0,0.00020795,2]
[349991573,1737555035285,-587.17,0.00020795,2]
[349991574,1737555035294,-564.81,0.00020795,2]
[349991575,1737555035304,-500.0,0.00020795,2]
[349991576,1737555035313,-500.0,0.00020795,2]
[349991577,1737555035323,-500.0,0.00020795,2]
[349991578,1737555035333,-500.0,0.00020795,2]
[349991579,1737555035346,-500.0,0.00020795,2]
[349991580,1737555035355,-500.0,0.00020795,2]
[349991581,1737555035365,-500.0,0.00020795,2]
[349991582,1737555035375,-537.72193533,0.00020795,2]
[349991583,1737555035385,-500.0,0.00020795,2]
[349991584,1737555035395,-500.0,0.00020795,2]
[349991585,1737555035404,-500.0,0.00020795,2]
[349991586,1737555035414,-500.0,0.00020795,2]
[349991587,1737555035423,-500.0,0.00020795,2]
[349991588,1737555035433,-1000.0,0.00020795,2]
[349991589,1737555035442,-500.0,0.00020795,2]
[349991590,1737555035454,-654.05,0.00020795,2]
[349991591,1737555035463,-500.0,0.00020795,2]
[349991592,1737555035473,-500.0,0.00020795,2]
[349991593,1737555035482,-500.0,0.00020795,2]
[349991594,1737555035492,-500.0,0.00020795,2]
[349991595,1737555035502,-1455.81,0.00020795,2]
[349991596,1737555035511,-1294.31,0.00020795,2]
[349991597,1737555035521,-500.0,0.00020795,2]
[349991598,1737555035530,-500.0,0.00020795,2]
[349991599,1737555035539,-500.0,0.00020795,2]
[349991600,1737555035549,-500.0,0.00020795,2]
[349991601,1737555035558,-500.0,0.00020795,2]
[349991602,1737555035568,-500.0,0.00020795,2]
[349991603,1737555035577,-500.0,0.00020795,2]
[349991604,1737555035586,-500.0,0.00020795,2]
[349991605,1737555035596,-500.0,0.00020795,2]
[349991606,1737555035605,-500.0,0.00020795,2]
[349991607,1737555035614,-599.52,0.00020795,2]
[349991608,1737555035623,-500.0,0.00020795,2]
[349991609,1737555035637,-571.65,0.00020795,2]
[349991610,1737555035645,-500.0,0.00020795,2]
[349991611,1737555035655,-500.0,0.00020795,2]
[349991612,1737555035664,-500.0,0.00020795,2]
[349991613,1737555035673,-500.0,0.00020795,2]
[349991614,1737555035683,-344.02240461,0.00020795,2]
[349991615,1737555035701,-155.97759539,0.00020795,2]
[349991616,1737555035711,-500.0,0.00020795,2]
[349991617,1737555035720,-500.0,0.00020795,2]
[349991618,1737555035730,-2235.49445848,0.00020795,2]
[349991619,1737555035740,-500.0,0.00020796,2]
[349991620,1737555035749,-500.0,0.00020796,2]
[349991621,1737555035758,-500.0,0.00020796,2]
[349991622,1737555035768,-500.0,0.00020796,2]
[349991623,1737555035778,-500.0,0.00020796,2]
[349991624,1737555035787,-500.0,0.00020796,2]
[349991625,1737555035796,-500.0,0.00020796,2]
[349991626,1737555035806,-500.0,0.00020796,2]
[349991627,1737555035815,-500.0,0.00020796,2]
[349991628,1737555035824,-500.0,0.00020796,2]
[349991629,1737555035833,-500.0,0.00020796,2]
[349991630,1737555035843,-359.92589614,0.00020796,2]
[349991631,1737555035852,-500.0,0.00020796,2]
[349991632,1737555035861,-500.0,0.00020796,2]
[349991633,1737555035870,-132.60204998,0.00020796,2]
[349991739,1737555038042,-367.39795002,0.00020796,2]
[349991741,1737555038052,-500.0,0.00020796,7]
[349991743,1737555038062,-162.08012037,0.00020796,2]
[349991746,1737555038081,-319.09468455,0.00020796,2]
[349991748,1737555038091,-312.66531545,0.00020796,2]
[349991751,1737555038109,-187.33468455,0.00020796,2]
[349991753,1737555038119,-500.0,0.00020796,2]
[349991755,1737555038128,-500.0,0.00020796,2]
[349991757,1737555038138,-354.01753412,0.00020796,2]
[349991759,1737555038147,-245.43092016,0.00020796,2]
[349991761,1737555038157,-190.77804286,0.00020796,2]
[349991763,1737555038167,-500.0,0.00020796,2]
[349991765,1737555038176,-500.0,0.00020796,2]
[349991767,1737555038185,-500.0,0.00020796,2]
[349991769,1737555038195,-500.0,0.00020796,2]
[349991771,1737555038207,-500.0,0.00020796,2]
[349991773,1737555038217,-500.0,0.00020796,2]
[349991775,1737555038227,-500.0,0.00020796,2]
[349991777,1737555038237,-500.0,0.00020796,2]
[349991779,1737555038246,-161.20220306,0.00020796,2]
[349991781,1737555038256,-500.0,0.00020796,2]
[349991783,1737555038266,-500.0,0.00020796,2]
[349991785,1737555038276,-500.0,0.00020796,2]
[349991787,1737555038286,-500.0,0.00020796,2]
[349991789,1737555038296,-300.97386254,0.00020796,2]
[349991791,1737555038306,-500.0,0.00020796,2]
[349991793,1737555038316,-500.0,0.00020796,2]
[349991795,1737555038325,-500.0,0.00020796,2]
[349991797,1737555038334,-500.0,0.00020796,2]
[349991799,1737555038344,-500.0,0.00020796,2]
[349991801,1737555038353,-500.0,0.00020796,2]
[349991803,1737555038363,-500.0,0.00020796,2]
[349991805,1737555038373,-500.0,0.00020796,2]
[349991807,1737555038383,-500.0,0.00020796,2]
[349991809,1737555038392,-500.0,0.00020796,2]
[349991811,1737555038401,-5000.0,0.00020796,2]
[349991813,1737555038410,-500.0,0.00020796,2]
[349991815,1737555038419,-500.0,0.00020796,2]
[349991817,1737555038428,-500.0,0.00020796,2]
[349991819,1737555038437,-500.0,0.00020796,2]
[349991821,1737555038446,-500.0,0.00020796,2]
[349991823,1737555038457,-500.0,0.00020796,2]
[349991825,1737555038466,-500.0,0.00020796,2]
[349991827,1737555038475,-500.0,0.00020796,2]
[349991829,1737555038484,-500.0,0.00020796,2]
[349991831,1737555038493,-500.0,0.00020796,2]
[349991833,1737555038504,-500.0,0.00020796,2]
[349991835,1737555038513,-500.0,0.00020796,2]
[349991837,1737555038523,-500.0,0.00020796,2]
[349991839,1737555038532,-500.0,0.00020796,2]
[349991841,1737555038541,-500.0,0.00020796,2]
[349991844,1737555038551,-500.0,0.00020796,2]
[349991846,1737555038560,-500.0,0.00020796,2]
[349991848,1737555038570,-500.0,0.00020796,2]
[349991850,1737555038579,-500.0,0.00020796,2]
[349991852,1737555038589,-500.0,0.00020796,2]
[349991854,1737555038598,-500.0,0.00020796,2]
[349991856,1737555038607,-500.0,0.00020796,2]
[349991858,1737555038616,-500.0,0.00020796,2]
[349991860,1737555038625,-500.0,0.00020796,2]
[349991862,1737555038635,-500.0,0.00020796,2]
[349991864,1737555038644,-500.0,0.00020796,2]
[349991866,1737555038653,-500.0,0.00020796,2]
[349991868,1737555038662,-500.0,0.00020796,2]
[349991870,1737555038671,-500.0,0.00020796,2]
[349991872,1737555038681,-500.0,0.00020796,2]
[349991874,1737555038690,-500.0,0.00020796,2]
[349991876,1737555038699,-500.0,0.00020796,2]
[349991878,1737555038712,-500.0,0.00020796,2]
[349991880,1737555038721,-500.0,0.00020796,2]
[349991882,1737555038731,-500.0,0.00020796,2]
[349991884,1737555038741,-500.0,0.00020796,2]
[349991886,1737555038749,-439.94601545,0.00020796,2]
[349991888,1737555038758,-500.0,0.00020796,2]
[349991890,1737555038768,-500.0,0.00020796,2]
[349991892,1737555038778,-500.0,0.00020796,2]
[349991894,1737555038788,-404.18742718,0.00020796,2]
[349991896,1737555038798,-500.0,0.00020796,2]
[349991898,1737555038807,-500.0,0.00020796,2]
[349991900,1737555038817,-500.0,0.00020796,2]
[349991901,1737555038827,-500.0,0.00020796,2]
[349991902,1737555038837,-487.71088498,0.00020797,2]
[349991903,1737555038847,-303.87646781,0.00020798,2]
[349991904,1737555038857,-4343.199854,0.00020798,2]
[349991905,1737555038867,-423.04317722,0.00020798,2]
[349991906,1737555038878,-200.0,0.00020799,2]
[349991907,1737555038887,-300.0,0.000208,7]
[349991909,1737555038897,-986.92333859,0.000208,2]
[349991911,1737555038907,-68470.04370873,0.000208,2]
[349991913,1737555038916,-348.83798382,0.000208,2]
[349991915,1737555038926,-396.3753791,0.00020801,2]
[349991917,1737555038936,-10485.90151004,0.00020802,2]
[349991919,1737555038946,-4343.199854,0.00020803,2]
[349991921,1737555038958,-423.04317722,0.00020803,2]
[349991923,1737555038967,-1817.25605091,0.00020803,2]
[349991925,1737555038978,-396.3753791,0.00020804,2]
[349991927,1737555038991,-303.87646781,0.00020804,2]
[349991929,1737555039000,-13047.14162084,0.00020804,2]
[349991931,1737555039010,-9985.70573971,0.00020808,2]
[349991934,1737555039027,-500.19577033,0.00020808,2]
[349991936,1737555039037,-396.3753791,0.00020808,2]
[349991938,1737555039046,-200.0,0.00020808,2]
[349991940,1737555039055,-24.19912276,0.00020808,2]
[349991942,1737555039070,-442.83585687,0.00020808,2]
[349991945,1737555039086,-1350.22107128,0.00020808,2]
[349991947,1737555039096,-729.47892872,0.0002081,2]
[349991949,1737555039107,-30249.61432661,0.0002081,2]
[349991951,1737555039120,-1802.52254225,0.0002081,2]
[349991953,1737555039130,-986.92333859,0.00020811,2]
[349991955,1737555039140,-6359.76467589,0.00020812,2]
[349991957,1737555039150,-348.83798382,0.00020814,2]
[349991959,1737555039160,-6359.76467589,0.00020815,2]
[349991961,1737555039169,-1753.69152984,0.00020816,2]
[349991963,1737555039178,-431.21193403,0.00020817,2]
[349991965,1737555039188,-2235.49445848,0.00020818,2]
[349991967,1737555039197,-200.0,0.00020818,2]
[349991969,1737555039208,-254.4892482,0.0002082,2]
[349991971,1737555039218,-82495.07635419,0.00020822,2]
[349991973,1737555039229,-200.0,0.00020823,2]
[349991976,1737555039239,-423.04317722,0.00020823,2]
[349991978,1737555039249,-32781.61579758,0.00020823,2]
[349991980,1737555039259,-508.97849639,0.00020824,2]
[349991982,1737555039269,-431.21193403,0.00020824,2]
[349991984,1737555039278,-508.97849639,0.00020824,2]
[349991986,1737555039287,-303.87646781,0.00020825,2]
[349991988,1737555039296,-2235.49445848,0.00020826,2]
[349991990,1737555039306,-311.21193404,0.00020827,2]
[349991992,1737555039315,-10797.3364183,0.00020827,2]
[349991994,1737555039324,-622.42386806,0.00020828,2]
[349991996,1737555039334,-82495.07635419,0.00020828,2]
[349991998,1737555039343,-10485.90151004,0.00020829,2]
[349992000,1737555039353,-405.53358838,0.00020829,2]
[349992002,1737555039362,-487.71088498,0.00020829,2]
[349992004,1737555039371,-6359.76467589,0.00020829,2]
[349992006,1737555039381,-431.21193403,0.00020829,2]
[349992008,1737555039391,-6359.76467589,0.0002083,2]
[349992010,1737555039400,-1345.74913322,0.0002083,2]
[349992012,1737555039410,-622.42386806,0.00020831,2]
[349992014,1737555039420,-200.0,0.00020834,2]
[349992016,1737555039430,-298.98941924,0.00020835,2]
[349992018,1737555039439,-622.42386806,0.00020835,2]
[349992020,1737555039449,-298.98941924,0.00020835,2]
[349992022,1737555039460,-32781.61579758,0.00020836,2]
[349992024,1737555039470,-200.0,0.00020837,2]
[349992026,1737555039479,-508.97849639,0.00020838,2]
[349992028,1737555039488,-1753.69152984,0.0002084,2]
[349992030,1737555039498,-10797.3364183,0.00020841,2]
[349992032,1737555039509,-405.53358838,0.00020841,2]
[349992034,1737555039518,-423.04317722,0.00020844,2]
[349992036,1737555039529,-405.53358838,0.00020844,2]
[349992038,1737555039538,-311.21193404,0.00020847,2]
[349992040,1737555039548,-348.83798382,0.00020847,2]
[349992042,1737555039557,-82495.07635419,0.00020849,2]
[349992044,1737555039567,-68470.04370873,0.00020852,2]
[349992046,1737555039576,-200.0,0.00020853,2]
[349992048,1737555039587,-303.87646781,0.00020855,2]
[349992050,1737555039596,-311.21193404,0.00020856,2]
[349992052,1737555039606,-298.98941924,0.00020857,2]
[349992054,1737555039615,-348.83798382,0.00020859,2]
[349992056,1737555039625,-10797.3364183,0.00020861,2]
[349992059,1737555039634,-396.3753791,0.00020861,2]
[349992060,1737555039644,-298.98941924,0.00020861,2]
[349992062,1737555039653,-254.4892482,0.00020862,2]
[349992065,1737555039663,-622.42386806,0.00020863,2]
[349992067,1737555039672,-423.04317722,0.00020865,2]
[349992069,1737555039681,-2235.49445848,0.00020869,2]
[349992071,1737555039691,-307.11194833,0.00020869,2]
[349992073,1737555039700,-200.0,0.00020871,2]
[349992075,1737555039711,-2750.65792878,0.00020873,2]
[349992077,1737555039720,-4343.199854,0.00020873,2]
[349992079,1737555039730,-254.4892482,0.00020875,2]
[349992081,1737555039739,-13047.14162084,0.00020876,2]
[349992082,1737555039748,-348.83798382,0.00020876,2]
[349992084,1737555039758,-4343.199854,0.00020876,2]
[349992086,1737555039767,-423.04317722,0.00020877,2]
[349992088,1737555039777,-230.99120606,0.00020877,2]
[349992091,1737555039786,-505.60453528,0.00020877,2]
[349992092,1737555039798,-500.0,0.00020877,2]
[349992094,1737555039807,-500.0,0.00020877,2]
[349992096,1737555039816,-500.0,0.00020877,2]
[349992098,1737555039825,-500.0,0.00020877,2]
[349992100,1737555039835,-500.0,0.00020877,2]
[349992102,1737555039844,-501.64243051,0.00020877,2]
[349992104,1737555039854,-301.14753056,0.00020877,2]
[349992106,1737555039863,-502.14893857,0.00020877,2]
[349992109,1737555039872,-500.0,0.00020877,2]
[349992111,1737555039883,-500.0,0.00020877,2]
[349992113,1737555039892,-500.0,0.00020877,2]
[349992115,1737555039902,-500.0,0.00020877,2]
[349992117,1737555039911,-500.0,0.00020877,2]
[349992120,1737555039921,-362.39799688,0.00020877,2]
[349992122,1737555039930,-500.0,0.00020877,2]
[349992124,1737555039939,-500.0,0.00020877,2]
[349992126,1737555039949,-500.0,0.00020877,2]
[349992128,1737555039958,-500.0,0.00020877,2]
[349992131,1737555039967,-501.58656571,0.00020877,2]